fUSD/lending_fUSD_20260517
["ID","MTS","AMOUNT","RATE_DAILY","PERIOD"]
[422441018,1778949051000,-179.0,0.00030166,30]
[422441020,1778949051000,-156.0,0.00030166,30]
[422441022,1778949051000,-15777.83035424,0.000302,2]
[422441019,1778949051000,-576.0,0.00030166,30]
[422440963,1778949051000,-272.760927,0.0003013,7]
[422440991,1778949051000,-177.904356,0.0003013,7]
[422440990,1778949051000,-363.633174,0.0003013,7]
[422441006,1778949051000,-200.0,0.00030136,2]
[422440993,1778949051000,-177.904356,0.0003013,7]
[422440992,1778949051000,-363.633174,0.0003013,7]
[422440968,1778949051000,-184.204154,0.0003013,7]
[422440967,1778949051000,-289.516242,0.0003013,7]
[422440969,1778949051000,-184.204154,0.0003013,7]
[422440970,1778949051000,-289.516242,0.0003013,7]
[422440974,1778949051000,-1455.722056,0.0003013,7]
[422441021,1778949051000,-412.4,0.000302,2]
[422440973,1778949051000,-151.0,0.0003013,7]
[422440975,1778949051000,-1455.722056,0.0003013,7]
[422440977,1778949051000,-1455.722056,0.0003013,7]
[422440976,1778949051000,-1455.722056,0.0003013,7]
[422440979,1778949051000,-1455.722056,0.0003013,7]
[422440980,1778949051000,-1455.722056,0.0003013,7]
[422440972,1778949051000,-184.204154,0.0003013,7]
[422440988,1778949051000,-177.904356,0.0003013,7]
[422440994,1778949051000,-363.633174,0.0003013,7]
[422440978,1778949051000,-1455.722056,0.0003013,7]
[422440989,1778949051000,-177.904356,0.0003013,7]
[422440986,1778949051000,-151.0,0.0003013,7]
[422440997,1778949051000,-177.904356,0.0003013,7]
[422440998,1778949051000,-363.633174,0.0003013,7]
[422440987,1778949051000,-151.0,0.0003013,7]
[422440984,1778949051000,-151.0,0.0003013,7]
[422440985,1778949051000,-151.0,0.0003013,7]
[422440981,1778949051000,-1455.722056,0.0003013,7]
[422440982,1778949051000,-151.0,0.0003013,7]
[422440983,1778949051000,-151.0,0.0003013,7]
[422441058,1778949052000,-152.0,0.000305,2]
[422441066,1778949052000,-182.00102973,0.000305,7]
[422441062,1778949052000,-152.0,0.000305,2]
[422441059,1778949052000,-152.0,0.000305,2]
[422441060,1778949052000,-152.0,0.000305,2]
[422441057,1778949052000,-152.0,0.000305,2]
[422441061,1778949052000,-152.0,0.000305,2]
[422441064,1778949052000,-152.0,0.000305,2]
[422441053,1778949052000,-152.0,0.000305,2]
[422441056,1778949052000,-151.0,0.000305,2]
[422441077,1778949052000,-408.76324416,0.00030522,7]
[422441063,1778949052000,-152.0,0.000305,2]
[422441076,1778949052000,-314.08231966,0.00030522,7]
[422441082,1778949052000,-336.86704385,0.00030522,7]
[422441067,1778949052000,-223.15629812,0.000305,2]
[422441068,1778949052000,-332.74200734,0.000305,7]
[422441074,1778949052000,-175.93766608,0.00030522,2]
[422441072,1778949052000,-234.79374812,0.00030522,7]
[422441075,1778949052000,-317.25770036,0.00030522,7]
[422441069,1778949052000,-247.72702021,0.000305,7]
[422441070,1778949052000,-614.66002901,0.00030522,7]
[422441073,1778949052000,-304.09388221,0.00030522,7]
[422441071,1778949052000,-439.4753857,0.00030522,7]
[422441078,1778949052000,-407.80383242,0.00030522,2]
[422441079,1778949052000,-166.22850899,0.00030522,7]
[422441081,1778949052000,-319.14000425,0.00030522,7]
[422441055,1778949052000,-152.0,0.000305,2]
[422441065,1778949052000,-152.77200367,0.000305,7]
[422441054,1778949052000,-152.0,0.000305,2]
[422441023,1778949052000,-1106.719357,0.000302,2]
[422441047,1778949052000,-200.0,0.00030437,2]
[422441024,1778949052000,-401.9,0.000302,2]
[422441087,1778949052000,-302.87209433,0.00030522,7]
[422441026,1778949052000,-1288.7,0.00030239,2]
[422441028,1778949052000,-1270.0,0.00030241,2]
[422441025,1778949052000,-150.0,0.00030205,2]
[422441027,1778949052000,-150.0,0.00030241,2]
[422441030,1778949052000,-3543.0,0.00030241,2]
[422441035,1778949052000,-1000.0,0.0003033,2]
[422441029,1778949052000,-1223.0,0.00030241,2]
[422441036,1778949052000,-1000.0,0.0003033,2]
[422441032,1778949052000,-169.19,0.00030319,3]
[422441031,1778949052000,-3631.0,0.00030241,2]
[422441034,1778949052000,-1000.0,0.0003033,2]
[422441052,1778949052000,-174.61919141,0.000305,2]
[422441033,1778949052000,-1000.0,0.0003033,2]
[422441039,1778949052000,-1000.0,0.00030332,2]
[422441041,1778949052000,-1000.0,0.00030332,2]
[422441049,1778949052000,-721.12765535,0.000305,2]
[422441050,1778949052000,-200.0,0.000305,2]
[422441038,1778949052000,-1000.0,0.00030332,2]
[422441051,1778949052000,-347.15258561,0.000305,2]
[422441040,1778949052000,-1000.0,0.00030332,2]
[422441048,1778949052000,-578.20924308,0.000305,2]
[422441046,1778949052000,-200.0,0.00030437,2]
[422441045,1778949052000,-200.0,0.00030437,2]
[422441042,1778949052000,-1000.0,0.00030332,2]
[422441044,1778949052000,-200.0,0.00030437,2]
[422441043,1778949052000,-555.0,0.00030341,5]
[422441037,1778949052000,-1000.0,0.0003033,2]
[422441088,1778949052000,-155.10066185,0.00030522,2]
[422441086,1778949052000,-303.55919928,0.00030522,7]
[422441080,1778949052000,-351.22818716,0.00030522,7]
[422441118,1778949052000,-340.0,0.00031009,2]
[422441120,1778949052000,-450.0,0.00031009,2]
[422441119,1778949052000,-450.0,0.00031009,2]
[422441126,1778949052000,-200.0,0.00031049,2]
[422441124,1778949052000,-181.08010149,0.00031048,2]
[422441121,1778949052000,-420.0,0.00031009,2]
[422441122,1778949052000,-150.0,0.00031011,2]
[422441125,1778949052000,-200.0,0.00031049,2]
[422441123,1778949052000,-200.0,0.00031048,2]
[422441136,1778949052000,-309.0,0.00031095,30]
[422441133,1778949052000,-736.0,0.00031095,30]
[422441130,1778949052000,-3174.36,0.0003109,7]
[422441137,1778949052000,-1250.0,0.00031095,30]
[422441135,1778949052000,-295.0,0.00031095,30]
[422441128,1778949052000,-200.0,0.00031049,2]
[422441134,1778949052000,-939.0,0.00031095,30]
[422441139,1778949052000,-170.0,0.00031147,2]
[422441131,1778949052000,-174.53699946,0.00031095,30]
[422441129,1778949052000,-1866.6068253,0.0003105,30]
[422441138,1778949052000,-289.0,0.00031135,30]
[422441132,1778949052000,-217.0,0.00031095,30]
[422441141,1778949052000,-313.0,0.00031166,30]
[422441140,1778949052000,-394.0,0.00031166,30]
[422441144,1778949052000,-156.0,0.00031166,30]
[422441142,1778949052000,-179.0,0.00031166,30]
[422441143,1778949052000,-576.0,0.00031166,30]
[422441084,1778949052000,-168.73247757,0.00030522,7]
[422441147,1778949052000,-297.0,0.00031176,2]
[422441146,1778949052000,-350.0,0.00031176,2]
[422441116,1778949052000,-400.0,0.00031009,2]
[422441127,1778949052000,-200.0,0.00031049,2]
[422441145,1778949052000,-350.0,0.00031176,2]
[422441111,1778949052000,-400.0,0.00030978,2]
[422441117,1778949052000,-400.0,0.00031009,2]
[422441083,1778949052000,-303.94310147,0.00030522,7]
[422441089,1778949052000,-304.13787731,0.00030522,7]
[422441091,1778949052000,-308.74415626,0.00030542,7]
[422441101,1778949052000,-200.0,0.00030742,2]
[422441092,1778949052000,-302.56487502,0.00030563,7]
[422441093,1778949052000,-357.04671545,0.00030563,7]
[422441094,1778949052000,-202.65700849,0.00030563,7]
[422441090,1778949052000,-303.24704406,0.00030522,7]
[422441096,1778949052000,-314.0,0.000307,2]
[422441099,1778949052000,-1190.40117411,0.00030705,2]
[422441095,1778949052000,-1000.0,0.000307,2]
[422441098,1778949052000,-308.0,0.000307,2]
[422441097,1778949052000,-884.0,0.000307,2]
[422441085,1778949052000,-385.4781587,0.00030522,7]
[422441103,1778949052000,-200.0,0.00030742,2]
[422441110,1778949052000,-400.0,0.00030978,2]
[422441112,1778949052000,-385.0,0.00030978,2]
[422441109,1778949052000,-151.0,0.00030938,7]
[422441104,1778949052000,-2312.0,0.00030797,3]
[422441100,1778949052000,-200.0,0.00030742,2]
[422441107,1778949052000,-150.98,0.000309,7]
[422441108,1778949052000,-186.2,0.000309,120]
[422441115,1778949052000,-208.44072055,0.00031,120]
[422441106,1778949052000,-555.0,0.00030875,6]
[422441105,1778949052000,-433.56120714,0.0003084,2]
[422441102,1778949052000,-200.0,0.00030742,2]
[422441113,1778949052000,-2312.0,0.00030978,3]
[422441114,1778949052000,-1934.52231501,0.00031,2]
[422441198,1778949053000,-225.58589953,0.00031428,7]
[422441188,1778949053000,-611.70574863,0.00031428,2]
[422441189,1778949053000,-332.45701797,0.00031428,7]
[422441187,1778949053000,-219.13025707,0.00031428,5]
[422441185,1778949053000,-471.12347948,0.00031428,7]
[422441181,1778949053000,-469.58749624,0.00031428,7]
[422441179,1778949053000,-164.74968649,0.00031428,7]
[422441183,1778949053000,-351.87533215,0.00031428,2]
[422441180,1778949053000,-159.7360125,0.00031428,7]
[422441177,1778949053000,-197.0535826,0.00031428,7]
[422441182,1778949053000,-456.14082331,0.00031428,7]
[422441190,1778949053000,-256.80498223,0.00031428,7]
[422441192,1778949053000,-223.6645013,0.00031428,7]
[422441197,1778949053000,-272.60653042,0.00031428,7]
[422441196,1778949053000,-505.30056577,0.00031428,7]
[422441194,1778949053000,-165.14032392,0.00031428,7]
[422441195,1778949053000,-296.04516897,0.00031428,7]
[422441193,1778949053000,-478.71000638,0.00031428,7]
[422441199,1778949053000,-455.91465221,0.00031428,7]
[422441201,1778949053000,-185.74628551,0.00031428,7]
[422441203,1778949053000,-578.21723805,0.00031428,7]
[422441202,1778949053000,-337.46495515,0.00031428,7]
[422441200,1778949053000,-203.46175448,0.00031428,7]
[422441205,1778949053000,-455.33879893,0.00031428,7]
[422441208,1778949053000,-310.2013237,0.00031428,2]
[422441178,1778949053000,-659.21307855,0.00031428,7]
[422441191,1778949053000,-526.84228074,0.00031428,7]
[422441184,1778949053000,-475.88655055,0.00031428,7]
[422441160,1778949053000,-209.92788924,0.00031405,7]
[422441176,1778949053000,-216.35884091,0.00031428,7]
[422441150,1778949053000,-942.2,0.000313,7]
[422441148,1778949053000,-723.0,0.00031208,5]
[422441149,1778949053000,-752.0,0.00031208,5]
[422441152,1778949053000,-200.0,0.0003136,2]
[422441151,1778949053000,-200.0,0.0003136,2]
[422441162,1778949053000,-364.00205946,0.00031405,7]
[422441206,1778949053000,-242.68222151,0.00031428,7]
[422441153,1778949053000,-200.0,0.0003136,2]
[422441154,1778949053000,-200.0,0.0003136,2]
[422441163,1778949053000,-261.88337364,0.00031405,7]
[422441155,1778949053000,-229.23651733,0.00031405,7]
[422441156,1778949053000,-305.54400735,0.00031405,7]
[422441159,1778949053000,-211.25102185,0.00031405,7]
[422441158,1778949053000,-251.58295753,0.00031405,7]
[422441161,1778949053000,-446.31259623,0.00031405,2]
[422441165,1778949053000,-247.76903023,0.00031405,7]
[422441173,1778949053000,-238.9517352,0.00031428,7]
[422441174,1778949053000,-921.99004351,0.00031428,7]
[422441169,1778949053000,-167.09989649,0.00031405,7]
[422441164,1778949053000,-150.89865638,0.00031405,7]
[422441167,1778949053000,-224.11792317,0.00031405,7]
[422441168,1778949053000,-495.45404042,0.00031405,7]
[422441166,1778949053000,-499.11301101,0.00031405,7]
[422441172,1778949053000,-227.10888297,0.00031428,7]
[422441171,1778949053000,-240.93886409,0.00031428,7]
[422441170,1778949053000,-555.0,0.00031409,6]
[422441175,1778949053000,-236.8125002,0.00031428,7]
[422441186,1778949053000,-613.14486624,0.00031428,7]
[422441207,1778949053000,-454.30814149,0.00031428,7]
[422441157,1778949053000,-167.06157218,0.00031405,2]
[422441209,1778949053000,-286.3473979,0.00031428,7]
[422441243,1778949053000,-185.52709223,0.00032008,7]
[422441246,1778949053000,-422.5020437,0.00032008,7]
[422441245,1778949053000,-228.0564765,0.00032008,7]
[422441240,1778949053000,-458.47303466,0.00032008,7]
[422441244,1778949053000,-503.16591506,0.00032008,7]
[422441241,1778949053000,-458.31601102,0.00032008,7]
[422441247,1778949053000,-297.43435867,0.00032008,7]
[422441257,1778949053000,-743.18106063,0.00032008,7]
[422441256,1778949053000,-226.89369012,0.00032008,7]
[422441250,1778949053000,-669.46889435,0.00032008,2]
[422441258,1778949053000,-334.19979297,0.00032008,7]
[422441253,1778949053000,-495.53806045,0.00032008,7]
[422441259,1778949053000,-200.82589408,0.00032032,7]
[422441255,1778949053000,-448.23584633,0.00032008,7]
[422441252,1778949053000,-301.79731275,0.00032008,7]
[422441248,1778949053000,-419.85577847,0.00032008,7]
[422441254,1778949053000,-665.48401468,0.00032008,7]
[422441249,1778949053000,-546.00308918,0.00032008,7]
[422441260,1778949053000,-481.87772817,0.00032032,7]
[422441262,1778949053000,-477.90347041,0.00032032,7]
[422441263,1778949053000,-234.89448455,0.00032032,7]
[422441264,1778949053000,-1229.32005802,0.00032032,7]
[422441261,1778949053000,-454.21776595,0.00032032,7]
[422441266,1778949053000,-473.6250004,0.00032032,7]
[422441267,1778949053000,-432.71768182,0.00032032,7]
[422441265,1778949053000,-411.25833501,0.00032032,7]
[422441210,1778949053000,-454.87056609,0.00031428,7]
[422441242,1778949053000,-334.12314435,0.00032008,2]
[422441238,1778949053000,-1160.8416246,0.00032,5]
[422441251,1778949053000,-523.76674727,0.00032008,7]
[422441236,1778949053000,-186.56694993,0.00032,120]
[422441204,1778949053000,-214.15507958,0.00031428,7]
[422441239,1778949053000,-158.14292892,0.00032008,7]
[422441222,1778949053000,-1000.0,0.000315,7]
[422441211,1778949053000,-456.20681597,0.00031428,7]
[422441212,1778949053000,-20177.09059595,0.0003143,4]
[422441216,1778949053000,-453.84731253,0.0003147,7]
[422441215,1778949053000,-463.11623439,0.00031448,7]
[422441213,1778949053000,-151.0,0.0003143,7]
[422441214,1778949053000,-151.0,0.0003143,7]
[422441220,1778949053000,-200.46984657,0.000315,2]
[422441217,1778949053000,-535.57007318,0.0003147,7]
[422441218,1778949053000,-405.31401697,0.0003147,7]
[422441219,1778949053000,-500.0,0.00031471,120]
[422441223,1778949053000,-1000.0,0.00031507,40]
[422441221,1778949053000,-150.0,0.000315,2]
[422441232,1778949053000,-186.2,0.000319,120]
[422441237,1778949053000,-1760.33572645,0.00032,2]
[422441234,1778949053000,-3023.48281286,0.00031963,30]
[422441233,1778949053000,-555.0,0.00031943,7]
[422441230,1778949053000,-150.0,0.00031885,2]
[422441228,1778949053000,-150.0,0.00031716,2]
[422441224,1778949053000,-200.0,0.00031596,2]
[422441235,1778949053000,-160.26020241,0.00032,120]
[422441225,1778949053000,-187.78006525,0.00031596,2]
[422441231,1778949053000,-1058.0,0.000319,7]
[422441226,1778949053000,-150.0,0.00031611,30]
[422441229,1778949053000,-299.33286419,0.00031869,2]
[422441227,1778949053000,-2809.1721,0.00031643,2]
[422441300,1778949054000,-158.109826,0.00032032,7]
[422441311,1778949054000,-371.49257103,0.00032032,7]
[422441306,1778949054000,-223.26412452,0.00032032,7]
[422441304,1778949054000,-592.09033794,0.00032032,7]
[422441307,1778949054000,-545.21306083,0.00032032,7]
[422441301,1778949054000,-211.15253257,0.00032032,7]
[422441308,1778949054000,-451.17179905,0.00032032,7]
[422441302,1778949054000,-638.2800085,0.00032032,7]
[422441309,1778949054000,-607.88620294,0.00032032,7]
[422441303,1778949054000,-330.28064784,0.00032032,7]
[422441315,1778949054000,-433.76213694,0.00032032,7]
[422441305,1778949054000,-673.73408769,0.00032032,7]
[422441316,1778949054000,-428.31015915,0.00032032,7]
[422441335,1778949054000,-1250.0,0.00032095,30]
[422441320,1778949054000,-605.74418865,0.00032032,7]
[422441314,1778949054000,-770.9563174,0.00032032,7]
[422441319,1778949054000,-485.36444302,0.00032032,7]
[422441318,1778949054000,-607.11839857,0.00032032,7]
[422441321,1778949054000,-465.30198556,0.00032032,2]
[422441317,1778949054000,-178.19889342,0.00032032,7]
[422441323,1778949054000,-572.6947958,0.00032032,7]
[422441312,1778949054000,-240.31669485,0.00032032,7]
[422441322,1778949054000,-608.27575463,0.00032032,7]
[422441325,1778949054000,-617.48831252,0.00032052,7]
[422441324,1778949054000,-606.49408812,0.00032032,7]
[422441336,1778949054000,-289.0,0.00032135,30]
[422441310,1778949054000,-406.92350897,0.00032032,7]
[422441313,1778949054000,-506.19743272,0.00032032,7]
[422441299,1778949054000,-447.3290026,0.00032032,7]
[422441271,1778949054000,-878.95077139,0.00032032,7]
[422441295,1778949054000,-498.68552696,0.00032032,7]
[422441272,1778949054000,-329.49937297,0.00032032,7]
[422441326,1778949054000,-605.12975005,0.00032074,7]
[422441269,1778949054000,-377.59928953,0.00032032,7]
[422441268,1778949054000,-382.98318061,0.00032032,7]
[422441270,1778949054000,-394.10716521,0.00032032,7]
[422441273,1778949054000,-213.35889344,0.00032032,7]
[422441278,1778949054000,-182.77276286,0.00032032,7]
[422441276,1778949054000,-168.45863393,0.00032032,2]
[422441279,1778949054000,-704.38124436,0.00032032,7]
[422441286,1778949054000,-628.16463931,0.00032032,7]
[422441281,1778949054000,-345.51135963,0.00032032,7]
[422441275,1778949054000,-335.66322435,0.00032032,7]
[422441274,1778949054000,-319.47202499,0.00032032,7]
[422441298,1778949054000,-279.27228348,0.00032032,7]
[422441283,1778949054000,-347.68392629,0.00032032,7]
[422441285,1778949054000,-634.51540073,0.00032032,7]
[422441280,1778949054000,-280.69460849,0.00032032,7]
[422441282,1778949054000,-608.18776441,0.00032032,7]
[422441287,1778949054000,-350.12999705,0.00032032,5]
[422441290,1778949054000,-817.52648832,0.00032032,7]
[422441288,1778949054000,-229.09579216,0.00032032,7]
[422441292,1778949054000,-272.47963967,0.00032032,7]
[422441293,1778949054000,-815.60766484,0.00032032,2]
[422441289,1778949054000,-381.22812455,0.00032032,7]
[422441291,1778949054000,-438.26051413,0.00032032,5]
[422441294,1778949054000,-513.60996447,0.00032032,7]
[422441297,1778949054000,-702.45637432,0.00032032,7]
[422441296,1778949054000,-173.89691175,0.00032032,7]
[422441277,1778949054000,-164.64211191,0.00032032,2]
[422441330,1778949054000,-217.0,0.00032095,30]
[422441284,1778949054000,-527.81299823,0.00032032,2]
[422441329,1778949054000,-607.97102546,0.00032074,7]
[422441373,1778949054000,-709.32,0.00032877,120]
[422441372,1778949054000,-956.2,0.00032877,2]
[422441366,1778949054000,-200.0,0.00032692,2]
[422441365,1778949054000,-892.61678863,0.00032679,7]
[422441374,1778949054000,-414.78489166,0.00032877,2]
[422441370,1778949054000,-1002.08,0.00032877,2]
[422441369,1778949054000,-500.0,0.00032836,120]
[422441367,1778949054000,-201.93286099,0.00032692,2]
[422441368,1778949054000,-4909.48004753,0.000328,2]
[422441371,1778949054000,-350.02,0.00032877,2]
[422441375,1778949054000,-500.0,0.00032877,2]
[422441377,1778949054000,-500.0,0.00032877,2]
[422441378,1778949054000,-500.0,0.00032877,2]
[422441362,1778949054000,-758.11761015,0.00032636,7]
[422441376,1778949054000,-500.0,0.00032877,2]
[422441386,1778949054000,-160.26020241,0.00033,120]
[422441382,1778949054000,-3993.93378267,0.00032877,30]
[422441381,1778949054000,-1221.46302377,0.00032877,60]
[422441383,1778949054000,-186.2,0.000329,120]
[422441385,1778949054000,-151.0,0.00032997,14]
[422441380,1778949054000,-500.0,0.00032877,2]
[422441384,1778949054000,-3174.36,0.00032939,14]
[422441327,1778949054000,-714.0934309,0.00032074,7]
[422441387,1778949054000,-571.588399,0.00033,14]
[422441389,1778949054000,-52156.22565831,0.00033,2]
[422441392,1778949054000,-1000.0,0.00033,5]
[422441390,1778949054000,-37975.79625586,0.00033,3]
[422441391,1778949054000,-215.03962261,0.00033,3]
[422441379,1778949054000,-500.0,0.00032877,2]
[422441364,1778949054000,-756.41218756,0.00032679,7]
[422441388,1778949054000,-186.56694993,0.00033,120]
[422441361,1778949054000,-757.18023582,0.00032636,7]
[422441363,1778949054000,-760.34469328,0.00032636,7]
[422441328,1778949054000,-181.83867802,0.00032074,7]
[422441332,1778949054000,-939.0,0.00032095,30]
[422441331,1778949054000,-736.0,0.00032095,30]
[422441334,1778949054000,-309.0,0.00032095,30]
[422441338,1778949054000,-194.72792766,0.00032144,2]
[422441349,1778949054000,-150.0,0.00032562,2]
[422441342,1778949054000,-576.0,0.00032166,30]
[422441340,1778949054000,-313.0,0.00032166,30]
[422441337,1778949054000,-200.0,0.00032144,2]
[422441344,1778949054000,-160.0,0.000322,12]
[422441339,1778949054000,-394.0,0.00032166,30]
[422441346,1778949054000,-1970.0,0.0003224,2]
[422441348,1778949054000,-555.0,0.00032477,7]
[422441333,1778949054000,-295.0,0.00032095,30]
[422441347,1778949054000,-908.48740076,0.000323,2]
[422441343,1778949054000,-156.0,0.00032166,30]
[422441359,1778949054000,-842.16760962,0.00032636,7]
[422441358,1778949054000,-1019.50958105,0.00032636,2]
[422441353,1778949054000,-1098.68846424,0.00032636,7]
[422441351,1778949054000,-831.85501835,0.00032612,7]
[422441357,1778949054000,-1021.9081104,0.00032636,7]
[422441360,1778949054000,-963.69539674,0.00032636,7]
[422441355,1778949054000,-793.14425091,0.00032636,7]
[422441354,1778949054000,-760.23470551,0.00032636,7]
[422441352,1778949054000,-1536.65007252,0.00032636,7]
[422441350,1778949054000,-500.0,0.00032603,2]
[422441345,1778949054000,-1288.7,0.0003221,5]
[422441356,1778949054000,-785.20579914,0.00032636,7]
[422441341,1778949054000,-179.0,0.00032166,30]
[422441434,1778949055000,-186.2,0.000339,120]
[422441433,1778949055000,-186.56694993,0.000339,120]
[422441435,1778949055000,-555.0,0.00034079,9]
[422441428,1778949055000,-555.0,0.00033545,9]
[422441424,1778949055000,-1223.41149726,0.00033541,2]
[422441426,1778949055000,-909.74113218,0.00033541,7]
[422441423,1778949055000,-942.24695897,0.00033541,7]
[422441421,1778949055000,-1318.42615709,0.00033541,7]
[422441414,1778949055000,-1270.0,0.00033241,2]
[422441425,1778949055000,-984.45051266,0.00033541,7]
[422441427,1778949055000,-912.41363194,0.00033541,7]
[422441438,1778949055000,-939.0,0.00034095,30]
[422441436,1778949055000,-217.0,0.00034095,30]
[422441430,1778949055000,-1071.14014635,0.00033585,7]
[422441431,1778949055000,-200.0,0.00033788,2]
[422441432,1778949055000,-217.15233878,0.00033788,2]
[422441449,1778949055000,-150.0,0.0003419,2]
[422441448,1778949055000,-1288.7,0.00034182,7]
[422441437,1778949055000,-736.0,0.00034095,30]
[422441439,1778949055000,-295.0,0.00034095,30]
[422441440,1778949055000,-309.0,0.00034095,30]
[422441419,1778949055000,-998.22602203,0.00033517,7]
[422441429,1778949055000,-472.14488087,0.00033585,31]
[422441413,1778949055000,-150.0,0.00033241,2]
[422441405,1778949055000,-156.0,0.00033166,30]
[422441420,1778949055000,-1843.98008703,0.00033541,7]
[422441398,1778949055000,-309.0,0.00033095,30]
[422441393,1778949055000,-555.0,0.00033011,8]
[422441395,1778949055000,-736.0,0.00033095,30]
[422441397,1778949055000,-295.0,0.00033095,30]
[422441394,1778949055000,-217.0,0.00033095,30]
[422441396,1778949055000,-939.0,0.00033095,30]
[422441399,1778949055000,-1250.0,0.00033095,30]
[422441400,1778949055000,-289.0,0.00033135,30]
[422441410,1778949055000,-200.0,0.0003324,2]
[422441408,1778949055000,-599.60298507,0.00033239,2]
[422441402,1778949055000,-313.0,0.00033166,30]
[422441403,1778949055000,-179.0,0.00033166,30]
[422441406,1778949055000,-386.540321,0.000332,16]
[422441401,1778949055000,-394.0,0.00033166,30]
[422441407,1778949055000,-942.2,0.000332,7]
[422441404,1778949055000,-576.0,0.00033166,30]
[422441409,1778949055000,-747.8093786,0.00033239,2]
[422441422,1778949055000,-951.77310109,0.00033541,7]
[422441412,1778949055000,-300.98575584,0.00033241,30]
[422441411,1778949055000,-209.40437684,0.0003324,2]
[422441417,1778949055000,-3631.0,0.00033241,2]
[422441415,1778949055000,-1223.0,0.00033241,2]
[422441416,1778949055000,-3543.0,0.00033241,2]
[422441418,1778949055000,-150.0,0.00033302,2]
[422441441,1778949055000,-1250.0,0.00034095,30]
[422441446,1778949055000,-576.0,0.00034166,30]
[422441444,1778949055000,-313.0,0.00034166,30]
[422441470,1778949055000,-600.0,0.00034312,60]
[422441469,1778949055000,-600.0,0.00034312,60]
[422441471,1778949055000,-600.0,0.00034312,60]
[422441477,1778949055000,-600.0,0.00034312,60]
[422441478,1778949055000,-600.0,0.00034312,60]
[422441483,1778949055000,-600.0,0.00034312,60]
[422441481,1778949055000,-600.0,0.00034312,60]
[422441482,1778949055000,-600.0,0.00034312,60]
[422441486,1778949055000,-200.0,0.00034336,2]
[422441490,1778949055000,-400.0,0.00034481,2]
[422441473,1778949055000,-600.0,0.00034312,60]
[422441480,1778949055000,-600.0,0.00034312,60]
[422441479,1778949055000,-600.0,0.00034312,60]
[422441488,1778949055000,-292.5,0.0003447,2]
[422441485,1778949055000,-664.1382359,0.00034312,60]
[422441489,1778949055000,-1154.86196114,0.00034481,2]
[422441492,1778949055000,-716.13466405,0.00034481,2]
[422441491,1778949055000,-400.0,0.00034481,2]
[422441494,1778949055000,-339.9254401,0.00034609,2]
[422441493,1778949055000,-528.36,0.00034521,120]
[422441495,1778949055000,-555.0,0.00034613,10]
[422441445,1778949055000,-179.0,0.00034166,30]
[422441484,1778949055000,-600.0,0.00034312,60]
[422441472,1778949055000,-600.0,0.00034312,60]
[422441487,1778949055000,-225.18697532,0.00034336,2]
[422441465,1778949055000,-600.0,0.00034312,60]
[422441442,1778949055000,-289.0,0.00034135,30]
[422441468,1778949055000,-600.0,0.00034312,60]
[422441447,1778949055000,-156.0,0.00034166,30]
[422441443,1778949055000,-394.0,0.00034166,30]
[422441450,1778949055000,-500.0,0.00034201,120]
[422441451,1778949055000,-1000.0,0.00034246,120]
[422441460,1778949055000,-487.29539194,0.00034282,3]
[422441455,1778949055000,-1000.0,0.00034246,120]
[422441452,1778949055000,-1000.0,0.00034246,120]
[422441454,1778949055000,-1000.0,0.00034246,120]
[422441456,1778949055000,-981.12540329,0.00034246,120]
[422441453,1778949055000,-1000.0,0.00034246,120]
[422441476,1778949055000,-600.0,0.00034312,60]
[422441462,1778949055000,-600.0,0.00034312,60]
[422441459,1778949055000,-371.82384798,0.00034282,3]